fUST/lending_fUST_20251010
["ID","MTS","AMOUNT","RATE_DAILY","PERIOD"]
[390647425,1760111448836,-3000.0,0.0002412,30]
[390647426,1760111448845,-3000.0,0.0002413,2]
[390647427,1760111448859,-3000.0,0.0002413,30]
[390647428,1760111448875,-1000.0,0.00024136,2]
[390647429,1760111448884,-3000.0,0.0002414,2]
[390647430,1760111448894,-3637.100357,0.0002414,30]
[390647431,1760111448903,-500.0,0.00024145,2]
[390647433,1760111448912,-3000.0,0.0002415,2]
[390647435,1760111448922,-3000.0,0.0002416,2]
[390647437,1760111448931,-162.0,0.00024164,7]
[390647439,1760111448941,-3000.0,0.0002417,2]
[390647441,1760111448950,-1500.0,0.00024178,2]
[390647443,1760111448960,-3000.0,0.0002418,2]
[390647445,1760111448969,-3000.0,0.0002419,2]
[390647447,1760111448979,-5000.0,0.00024198,2]
[390647449,1760111448989,-5000.0,0.00024198,2]
[390647451,1760111448998,-3000.0,0.000242,2]
[390647453,1760111449007,-251.0,0.000242,2]
[390647455,1760111449016,-6636.11151213,0.000242,2]
[390647457,1760111449026,-155.752932,0.000242,7]
[390647459,1760111449035,-250.0,0.000242,10]
[390647461,1760111449045,-3000.0,0.0002421,2]
[390647467,1760111449097,-3000.0,0.0002422,2]
[390647469,1760111449107,-3000.0,0.0002423,2]
[390647471,1760111449116,-1060.0,0.00024237,2]
[390647473,1760111449126,-5000.0,0.00024238,2]
[390647475,1760111449135,-5000.0,0.00024238,2]
[390647477,1760111449144,-5000.0,0.00024238,2]
[390647479,1760111449154,-9043.37171014,0.00024238,2]
[390647481,1760111449163,-5000.0,0.00024238,2]
[390647483,1760111449172,-5000.0,0.00024238,2]
[390647485,1760111449182,-5000.0,0.00024238,2]
[390647486,1760111449194,-5000.0,0.00024238,2]
[390647488,1760111449203,-8309.16000061,0.00024238,2]
[390647490,1760111449213,-5000.0,0.00024238,2]
[390647492,1760111449223,-8161.7173019,0.00024238,2]
[390647494,1760111449233,-5000.0,0.00024238,2]
[390647496,1760111449242,-5000.0,0.00024238,2]
[390647498,1760111449251,-6281.6781991,0.00024238,2]
[390647500,1760111449263,-5000.0,0.00024238,2]
[390647502,1760111449273,-5000.0,0.00024238,2]
[390647504,1760111449283,-5000.0,0.00024238,2]
[390647506,1760111449293,-5000.0,0.00024238,2]
[390647508,1760111449302,-151.0,0.00024238,7]
[390647510,1760111449312,-255.287041,0.00024238,7]
[390647512,1760111449321,-255.287041,0.00024238,7]
[390647514,1760111449335,-255.287041,0.00024238,7]
[390647516,1760111449345,-255.287043,0.00024238,7]
[390647518,1760111449354,-151.0,0.00024238,7]
[390647520,1760111449364,-535.230018,0.00024238,7]
[390647522,1760111449373,-535.230018,0.00024238,7]
[390647524,1760111449383,-535.230018,0.00024238,7]
[390647526,1760111449392,-535.230016,0.00024238,7]
[390647528,1760111449402,-2750.165056,0.00024238,7]
[390647530,1760111449411,-2750.165056,0.00024238,7]
[390647532,1760111449420,-2750.165056,0.00024238,7]
[390647534,1760111449430,-2750.165059,0.00024238,7]
[390647536,1760111449439,-151.0,0.00024238,7]
[390647538,1760111449448,-151.0,0.00024238,7]
[390647540,1760111449457,-151.0,0.00024238,7]
[390647542,1760111449466,-345.478907,0.00024238,7]
[390647544,1760111449477,-151.0,0.00024238,7]
[390647546,1760111449486,-345.478907,0.00024238,7]
[390647548,1760111449496,-151.0,0.00024238,7]
[390647550,1760111449505,-345.478907,0.00024238,7]
[390647551,1760111449514,-345.478904,0.00024238,7]
[390647554,1760111449525,-151.0,0.00024238,7]
[390647556,1760111449535,-151.0,0.00024238,7]
[390647557,1760111449544,-151.0,0.00024238,7]
[390647559,1760111449553,-211.222275,0.00024238,7]
[390647561,1760111449563,-211.222275,0.00024238,7]
[390647563,1760111449572,-211.222275,0.00024238,7]
[390647565,1760111449584,-211.222275,0.00024238,7]
[390647567,1760111449594,-196.875857,0.00024238,7]
[390647569,1760111449603,-1000.0,0.00024239,2]
[390647571,1760111449612,-1000.0,0.00024239,2]
[390647573,1760111449621,-3000.0,0.0002424,2]
[390647575,1760111449630,-151.0,0.0002424,7]
[390647577,1760111449639,-188.41805,0.0002424,7]
[390647579,1760111449648,-188.41805,0.0002424,7]
[390647581,1760111449657,-188.41805,0.0002424,7]
[390647583,1760111449666,-188.418055,0.0002424,7]
[390647585,1760111449676,-1500.0,0.00024241,2]
[390647587,1760111449685,-331.56949515,0.00024241,2]
[390647589,1760111449695,-1500.0,0.00024241,2]
[390647591,1760111449704,-1500.0,0.00024241,2]
[390647593,1760111449713,-3000.0,0.0002425,2]
[390647595,1760111449722,-3000.0,0.0002426,2]
[390647597,1760111449731,-3000.0,0.0002427,2]
[390647599,1760111449740,-1500.0,0.00024274,2]
[390647601,1760111449749,-1500.0,0.00024274,2]
[390647603,1760111449759,-3000.0,0.0002428,2]
[390647605,1760111449768,-4274.200715,0.0002429,2]
[390647607,1760111449778,-250.0,0.000243,10]
[390647609,1760111449787,-611.66631733,0.00024309,2]
[390647611,1760111449796,-500.0,0.00024317,2]
[390647613,1760111449806,-550.06339906,0.00024325,2]
[390647615,1760111449815,-1041.66666667,0.000244,7]
[390647617,1760111449838,-6636.11151213,0.000244,2]
[390647619,1760111449847,-160.0,0.000244,7]
[390647621,1760111449857,-298.03512572,0.000244,7]
[390647623,1760111449866,-250.0,0.000244,10]
[390647625,1760111449875,-39445.20066773,0.000244,2]
[390647628,1760111449884,-628.95263099,0.000244,2]
[390647629,1760111449893,-151.0,0.0002444,7]
[390647631,1760111449903,-151.0,0.0002444,7]
[390647633,1760111449912,-151.0,0.0002444,7]
[390647635,1760111449920,-207.763216,0.0002444,7]
[390647637,1760111449932,-207.763216,0.0002444,7]
[390647639,1760111449942,-207.763216,0.0002444,7]
[390647641,1760111449951,-151.0,0.0002444,7]
[390647643,1760111449960,-207.763221,0.0002444,7]
[390647645,1760111449969,-499.3,0.0002448,2]
[390647647,1760111449978,-136.0,0.000245,30]
[390647649,1760111449987,-664.86953603,0.000245,2]
[390647651,1760111449996,-1100.0,0.000245,5]
[390647653,1760111450006,-115091.1695287,0.000245,14]
[390647655,1760111450015,-250.0,0.000245,10]
[390647657,1760111450024,-2000.0,0.00024524,2]
[390647659,1760111450033,-1500.0,0.00024572,2]
[390647661,1760111450042,-1500.0,0.00024572,2]
[390647663,1760111450052,-1070.25887313,0.00024572,2]
[390647665,1760111450061,-500.82063866,0.00024572,2]
[390647667,1760111450070,-1500.0,0.00024572,2]
[390647669,1760111450081,-1130.90976695,0.00024572,2]
[390647671,1760111450091,-1500.0,0.00024572,2]
[390647673,1760111450100,-1500.0,0.00024572,2]
[390647675,1760111450110,-250.0,0.000246,10]
[390647677,1760111450119,-2000.0,0.00024616,2]
[390647679,1760111450128,-2000.0,0.00024616,2]
[390647681,1760111450137,-2000.0,0.00024616,2]
[390647683,1760111450146,-2000.0,0.00024616,2]
[390647685,1760111450155,-1578.09265396,0.00024616,2]
[390647687,1760111450163,-761.62110526,0.00024616,2]
[390647689,1760111450173,-2000.0,0.00024616,2]
[390647691,1760111450183,-2000.0,0.00024616,2]
[390647693,1760111450195,-948.9830825,0.00024616,2]
[390647695,1760111450204,-467.65197112,0.00024616,2]
[390647697,1760111450213,-2123.80643804,0.00024616,2]
[390647699,1760111450222,-2002.02220528,0.00024616,2]
[390647701,1760111450232,-2000.0,0.00024616,2]
[390647703,1760111450241,-2000.0,0.00024616,2]
[390647705,1760111450250,-6500.0,0.00024648,2]
[390647707,1760111450259,-507.97530781,0.0002465,2]
[390647709,1760111450269,-155031.07114199,0.0002465,2]
[390647711,1760111450278,-200.0,0.00024658,2]
[390647712,1760111450288,-200.0,0.00024658,15]
[390647714,1760111450297,-380.0,0.00024658,2]
[390647716,1760111450306,-151.0,0.00024658,7]
[390647719,1760111450316,-151.0,0.00024658,7]
[390647721,1760111450325,-185.270169,0.00024658,7]
[390647722,1760111450338,-151.0,0.00024658,2]
[390647724,1760111450347,-733.0,0.00024658,2]
[390647726,1760111450356,-733.0,0.00024658,2]
[390647728,1760111450365,-152.46405643,0.00024673,2]
[390647730,1760111450374,-980.0,0.00024677,2]
[390647732,1760111450383,-411.0,0.00024677,2]
[390647734,1760111450392,-411.0,0.00024677,2]
[390647736,1760111450401,-2159.0,0.00024677,2]
[390647738,1760111450411,-630.0,0.00024677,2]
[390647741,1760111450421,-1500.0,0.00024684,2]
[390647742,1760111450431,-6636.11151213,0.000247,2]
[390647744,1760111450440,-250.0,0.000247,10]
[390647746,1760111450449,-151.0,0.00024713,2]
[390647748,1760111450459,-733.0,0.00024713,2]
[390647750,1760111450468,-733.0,0.00024713,2]
[390647753,1760111450477,-501.46987279,0.00024726,2]
[390647754,1760111450487,-46823.25077623,0.0002475,2]
[390647756,1760111450495,-151.0,0.00024768,2]
[390647758,1760111450504,-733.0,0.00024768,2]
[390647761,1760111450514,-733.0,0.00024768,2]
[390647762,1760111450523,-16634.41745733,0.00024774,2]
[390647764,1760111450532,-1160.0,0.00024784,2]
[390647767,1760111450542,-1535.90575402,0.00024787,2]
[390647769,1760111450551,-1500.0,0.00024787,2]
[390647771,1760111450560,-2000.0,0.00024789,2]
[390647772,1760111450569,-1958.29625932,0.00024789,2]
[390647775,1760111450581,-2000.0,0.00024789,2]
[390647777,1760111450591,-393.35895,0.00024792,2]
[390647779,1760111450600,-250.0,0.000248,10]
[390647781,1760111450609,-26271.61,0.00024809,2]
[390647782,1760111450618,-919.13833024,0.00024822,2]
[390647784,1760111450627,-2000.0,0.00024822,2]
[390647787,1760111450637,-232.56164209,0.00024822,2]
[390647789,1760111450646,-733.0,0.00024822,2]
[390647791,1760111450655,-733.0,0.00024822,2]
[390647792,1760111450664,-150.0,0.00024873,2]
[390647795,1760111450674,-733.0,0.00024877,2]
[390647797,1760111450683,-733.0,0.00024877,2]
[390647799,1760111450692,-6636.11151213,0.000249,2]
[390647800,1760111450701,-468.049108,0.000249,10]
[390647803,1760111450711,-756164.742126,0.000249,2]
[390647805,1760111450720,-733.0,0.00024932,2]
[390647806,1760111450729,-733.0,0.00024932,2]
[390647808,1760111450739,-1163.506465,0.0002498,5]
[390647810,1760111450748,-733.0,0.00024987,2]
[390647812,1760111450757,-733.0,0.00024987,2]
[390647814,1760111450766,-1613.0,0.00024995,2]
[390647816,1760111450776,-30000.0,0.00025,2]
[390647819,1760111450786,-30000.0,0.00025,2]
[390647821,1760111450796,-5887.91166769,0.00025,2]
[390647823,1760111450806,-5188.06,0.00025,30]
[390647825,1760111450815,-472.11,0.00025,2]
[390647827,1760111450826,-172000.0,0.00025,7]
[390647829,1760111450837,-160.0,0.00025,7]
[390647831,1760111450847,-234.29301719,0.00025,7]
[390647833,1760111450857,-524.71170062,0.00025,3]
[390647835,1760111450867,-60000.0,0.00025,7]
[390647837,1760111450876,-234.29301719,0.00025,30]
[390647839,1760111450885,-154.0,0.00025,2]
[390647841,1760111450895,-30006.76052813,0.00025,2]
[390647843,1760111450904,-1073.61329886,0.00025,2]
[390647845,1760111450914,-2645.52291691,0.00025,2]
[390647847,1760111450923,-209.60795355,0.00025,2]
[390647849,1760111450933,-10364.0,0.00025,2]
[390647851,1760111450942,-200.32765108,0.00025,2]
[390647853,1760111450951,-150.0,0.00025,2]
[390647855,1760111450960,-600.0,0.00025,2]
[390647857,1760111450970,-4993.30453947,0.00025,2]
[390647859,1760111450979,-193.23420275,0.00025,2]
[390647861,1760111450989,-44330.0,0.00025,30]
[390647863,1760111451000,-1610.0,0.00025,30]
[390647865,1760111451009,-12670.18736805,0.00025,2]
[390647867,1760111451024,-2187.0,0.00025,30]
[390647869,1760111451034,-210.0,0.00025,7]
[390647871,1760111451044,-89725.7136454,0.00025,5]
[390647873,1760111451054,-20000.0,0.00025,10]
[390647875,1760111451065,-298.03512572,0.00025,10]
[390647877,1760111451076,-234.32063665,0.00025,10]
[390647879,1760111451088,-1041.66666667,0.00025,10]
[390647881,1760111451097,-1041.66666667,0.00025,30]
[390647883,1760111451107,-1000.0,0.00025,5]
[390647885,1760111451117,-298.03512572,0.00025,30]
[390647888,1760111451126,-160.0,0.00025,30]
[390647890,1760111451136,-160.0,0.00025,10]
[390647891,1760111451146,-150.0,0.00025,2]
[390647894,1760111451155,-659.38582281,0.00025,2]
[390647896,1760111451165,-205.323931,0.00025,2]
[390647898,1760111451175,-733.0,0.00025042,2]
[390647900,1760111451189,-733.0,0.00025042,2]
[390647902,1760111451199,-1000.0,0.00025066,4]
[390647904,1760111451209,-2500.0,0.00025072,2]
[390647906,1760111451219,-733.0,0.00025096,2]
[390647908,1760111451230,-733.0,0.00025096,2]
[390647910,1760111451240,-2000.0,0.0002512,2]
[390647912,1760111451250,-2000.0,0.0002512,2]
[390647914,1760111451262,-1847.30961073,0.0002512,2]
[390647916,1760111451273,-415.21692233,0.0002512,2]
[390647918,1760111451283,-2000.0,0.0002512,2]
[390647920,1760111451293,-733.0,0.00025151,2]
[390647922,1760111451304,-733.0,0.00025151,2]
[390647924,1760111451314,-847.94219567,0.00025164,2]
[390647926,1760111451325,-2500.0,0.00025164,2]
[390647928,1760111451340,-2500.0,0.00025164,2]
[390647930,1760111451350,-2500.0,0.00025164,2]
[390647932,1760111451361,-2500.0,0.00025164,2]
[390647935,1760111451371,-2500.0,0.00025164,2]
[390647937,1760111451382,-2500.0,0.00025164,2]
[390647939,1760111451392,-2500.0,0.00025164,2]
[390647941,1760111451402,-7000.0,0.00025196,2]
[390647942,1760111451412,-6636.11151213,0.000252,2]
[390647944,1760111451422,-260.0,0.00025206,10]
[390647947,1760111451432,-733.0,0.00025206,2]
[390647949,1760111451441,-733.0,0.00025206,2]
[390647951,1760111451453,-203.0,0.0002521,12]
[390647952,1760111451463,-2000.0,0.00025232,2]
[390647955,1760111451472,-733.0,0.00025261,2]
[390647956,1760111451482,-733.0,0.00025261,2]
[390647959,1760111451492,-14031.62,0.000253,2]
[390647960,1760111451501,-1260.0,0.00025332,2]
[390647963,1760111451511,-555.1393449,0.00025335,2]
[390647965,1760111451521,-2500.0,0.00025337,2]
[390647967,1760111451531,-2500.0,0.00025337,2]
[390647969,1760111451541,-155.752932,0.0002534,2]
[390647971,1760111451551,-297.71567242,0.0002537,2]
[390647973,1760111451561,-1500.0,0.000254,2]
[390647975,1760111451571,-1500.0,0.000254,2]
[390647977,1760111451585,-1500.0,0.000254,2]
[390647979,1760111451595,-1500.0,0.000254,2]
[390647981,1760111451605,-1500.0,0.000254,2]
[390647983,1760111451615,-1500.0,0.000254,2]
[390647985,1760111451625,-1500.0,0.000254,2]
[390647987,1760111451635,-1500.0,0.000254,2]
[390647989,1760111451645,-1500.0,0.000254,2]
[390647991,1760111451654,-1500.0,0.000254,2]
[390647993,1760111451664,-1907.48,0.000254,2]
[390647995,1760111451674,-200.0,0.000254,14]
[390647997,1760111451684,-300.0,0.00025421,2]
[390647999,1760111451694,-642267.6641,0.00025444,2]
[390648001,1760111451704,-464750.32882159,0.00025444,2]
[390648022,1760111451899,-426228.91607841,0.00025444,2]
[390648024,1760111451909,-900.0,0.00025469,3]
[390648026,1760111451919,-208.07996854,0.00025495,2]
[390648028,1760111451929,-208.07996854,0.00025495,2]
[390648030,1760111451939,-1000.0,0.000255,2]
[390648032,1760111451948,-162.8446322,0.00025574,2]
[390648034,1760111451958,-689.81901463,0.000256,2]
[390648037,1760111451967,-832.35442726,0.0002562,2]
[390648039,1760111451978,-2500.0,0.00025668,2]
[390648041,1760111451988,-2500.0,0.00025668,2]
[390648043,1760111451997,-2500.0,0.00025668,2]
[390648045,1760111452007,-29555.56,0.00025695,2]
[390648047,1760111452017,-178571.4,0.000257,3]
[390648049,1760111452026,-935.56618255,0.00025712,2]
[390648051,1760111452037,-3000.0,0.00025712,2]
[390648053,1760111452047,-3000.0,0.00025712,2]
[390648055,1760111452056,-502.83621437,0.00025712,2]
[390648057,1760111452066,-3000.0,0.00025712,2]
[390648059,1760111452076,-3000.0,0.00025712,2]
[390648061,1760111452090,-3000.0,0.00025712,2]
[390648063,1760111452100,-431.55569819,0.00025744,2]
[390648065,1760111452110,-2500.0,0.0002578,2]
[390648067,1760111452119,-11057.03662586,0.00025789,2]
[390648069,1760111452129,-24511.64528081,0.000258,2]
[390648071,1760111452138,-1041.66666667,0.000258,30]
[390648073,1760111452148,-1041.66666667,0.000258,30]
[390648075,1760111452158,-234.32063665,0.000258,30]
[390648077,1760111452168,-298.03512572,0.000258,30]
[390648079,1760111452178,-1360.0,0.0002588,2]
[390648081,1760111452191,-1702.55146711,0.00025885,2]
[390648083,1760111452200,-3000.0,0.00025885,2]
[390648085,1760111452210,-923.282674,0.0002589,30]
[390648087,1760111452220,-15000.0,0.000259,10]
[390648089,1760111452230,-450.0,0.00025968,2]
[390648091,1760111452240,-517.29314729,0.00025999,30]
[390648094,1760111452249,-160.0,0.00026,2]
[390648096,1760111452260,-523.93245573,0.00026,2]
[390648098,1760111452270,-19900.0,0.00026,2]
[390648100,1760111452280,-5362.33,0.00026,2]
[390648102,1760111452290,-1000.65602608,0.00026,30]
[390648104,1760111452299,-18182.73442774,0.00026,10]
[390648106,1760111452308,-497.67814545,0.00026,30]
[390648108,1760111452318,-123045.68416215,0.00026,20]
[390648116,1760111452384,-13882.44963687,0.00026,20]
[390648118,1760111452396,-2085.29456062,0.00026,20]
[390648120,1760111452407,-955.22253843,0.00026,20]
[390648122,1760111452419,-1025.92947994,0.00026,20]
[390648125,1760111452430,-3329.94312235,0.00026,20]
[390648127,1760111452442,-746.61058539,0.00026,20]
[390648129,1760111452454,-815.20810389,0.00026,20]
[390648131,1760111452466,-7319.77136015,0.00026,20]
[390648134,1760111452478,-8410.48810468,0.00026,20]
[390648136,1760111452489,-9508.0,0.00026,20]
[390648138,1760111452500,-5960.93202366,0.00026,20]
[390648140,1760111452512,-483.2568244,0.00026,20]
[390648143,1760111452523,-20124.84381258,0.00026,20]
[390648159,1760111452705,-18522.93556216,0.00026,20]
[390648161,1760111452716,-418.70525394,0.00026,20]
[390648163,1760111452729,-370.16282801,0.00026,20]
[390648165,1760111452740,-256.08307455,0.00026,20]
[390648167,1760111452751,-356.87099803,0.00026,20]
[390648169,1760111452766,-136970.6983682,0.00026,20]
[390648171,1760111452775,-5082.88754198,0.00026,2]
[390648172,1760111452784,-23082.58524047,0.00026,60]
[390648174,1760111452793,-3000.0,0.00026,2]
[390648176,1760111452802,-507.0,0.00026,30]
[390648177,1760111452811,-234.32063665,0.00026,10]
[390648179,1760111452821,-298.03512572,0.00026,10]
[390648181,1760111452833,-234.32063665,0.00026,30]
[390648183,1760111452842,-298.03512572,0.00026,30]
[390648184,1760111452851,-1041.66666667,0.00026,10]
[390648186,1760111452860,-2080.3,0.00026027,2]
[390648188,1760111452869,-500.0,0.00026027,4]
[390648189,1760111452878,-192.43815092,0.0002616,2]
[390648191,1760111452888,-900.0,0.00026192,2]
[390648193,1760111452897,-720.25220645,0.000262,2]
[390648194,1760111452906,-1945.20505808,0.00026216,2]
[390648196,1760111452915,-3000.0,0.00026216,2]
[390648198,1760111452924,-1017.02984979,0.00026216,2]
[390648199,1760111452934,-3500.0,0.0002626,2]
[390648201,1760111452943,-592.89641741,0.0002626,2]
[390648203,1760111452952,-3500.0,0.0002626,2]
[390648205,1760111452961,-566.36803254,0.0002626,2]
[390648207,1760111452970,-1418.37480096,0.0002626,2]
[390648208,1760111452980,-1000.0,0.00026282,30]
[390648210,1760111452989,-492.0,0.00026282,30]
[390648212,1760111452998,-297.8284942,0.00026322,2]
[390648214,1760111453008,-162.8446322,0.00026322,2]
[390648215,1760111453017,-600.4709423,0.00026322,2]
[390648217,1760111453027,-297.8284942,0.00026322,2]
[390648219,1760111453036,-297.8284942,0.00026322,2]
[390648221,1760111453046,-187.5075381,0.00026322,2]
[390648222,1760111453055,-162.8446322,0.00026322,2]
[390648224,1760111453064,-162.8446322,0.00026322,2]
[390648226,1760111453073,-162.8446322,0.00026322,2]
[390648227,1760111453085,-327.7510355,0.00026322,2]
[390648229,1760111453095,-552.88844342,0.00026328,2]
[390648231,1760111453104,-302.5006052,0.00026338,2]
[390648233,1760111453113,-11057.03662586,0.00026373,2]
[390648235,1760111453122,-14031.62,0.000264,2]
[390648236,1760111453133,-1460.0,0.00026428,2]
[390648238,1760111453142,-3500.0,0.00026433,2]
[390648240,1760111453152,-150.0,0.000265,30]
[390648242,1760111453162,-600.0,0.00026516,2]
[390648244,1760111453171,-32839.52,0.00026581,2]
[390648246,1760111453184,-547.36,0.00026632,7]
[390648247,1760111453194,-1201.331191,0.00026676,2]
[390648249,1760111453204,-547.36,0.00026732,7]
[390648251,1760111453214,-3500.0,0.00026764,2]
[390648253,1760111453225,-750.68539827,0.000268,2]
[390648255,1760111453235,-2819.74286723,0.000268,7]
[390648256,1760111453245,-496.47532479,0.00026808,2]
[390648258,1760111453255,-4000.0,0.00026808,2]
[390648260,1760111453269,-547.36,0.00026832,7]
[390648262,1760111453280,-673.3716932,0.00026897,2]
[390648264,1760111453290,-40000.0,0.000269,2]
[390648266,1760111453300,-547.36,0.00026932,7]
[390648267,1760111453310,-156.31,0.00026949,7]
[390648269,1760111453319,-11057.03662586,0.00026957,2]
[390648271,1760111453330,-1560.0,0.00026976,2]
[390648272,1760111453342,-4000.0,0.00026981,2]
[390648274,1760111453351,-509328.53711831,0.00027,20]
[390648276,1760111453361,-600.0,0.00027,14]
[390648278,1760111453371,-7085.0,0.00027,7]
[390648280,1760111453381,-3410.97742888,0.00027,5]
[390648281,1760111453390,-198826.63736935,0.00027,14]
[390648283,1760111453400,-22505.38094273,0.00027,30]
[390648285,1760111453410,-20355.64201794,0.00027,30]
[390648287,1760111453420,-1251.34,0.00027,30]
[390648289,1760111453429,-156.59015972,0.00027024,7]
[390648290,1760111453439,-547.36,0.00027032,7]
[390648292,1760111453450,-750.0,0.00027064,2]
[390648294,1760111453459,-218.128692,0.00027087,2]
[390648296,1760111453468,-1005.7224765,0.00027123,3]
[390648298,1760111453478,-547.36,0.00027132,7]
[390648299,1760111453488,-547.36,0.00027232,7]
[390648301,1760111453499,-4000.0,0.00027312,2]
[390648303,1760111453509,-2258.0,0.00027328,2]
[390648305,1760111453518,-547.36,0.00027332,7]
[390648307,1760111453527,-4500.0,0.00027356,2]
[390648308,1760111453536,-150.0,0.0002739,2]
[390648310,1760111453545,-198.24211998,0.0002739,2]
[390648312,1760111453554,-522.62,0.00027397,60]
[390648313,1760111453563,-522.62,0.00027397,60]
[390648315,1760111453572,-522.62,0.00027397,60]
[390648317,1760111453584,-522.62,0.00027397,60]
[390648318,1760111453594,-522.62,0.00027397,60]
[390648320,1760111453604,-522.62,0.00027397,60]
[390648322,1760111453613,-522.62,0.00027397,60]
[390648324,1760111453622,-522.62,0.00027397,60]
[390648326,1760111453632,-522.62,0.00027397,60]
[390648327,1760111453641,-522.62,0.00027397,60]
[390648329,1760111453651,-522.62,0.00027397,60]
[390648331,1760111453661,-522.62,0.00027397,60]
[390648333,1760111453670,-522.62,0.00027397,60]
[390648335,1760111453680,-522.62,0.00027397,60]
[390648336,1760111453690,-522.62,0.00027397,60]
[390648338,1760111453699,-522.62,0.00027397,60]
[390648340,1760111453709,-522.62,0.00027397,60]
[390648342,1760111453718,-522.62,0.00027397,60]
[390648344,1760111453728,-522.62,0.00027397,60]
[390648345,1760111453737,-522.62,0.00027397,60]
[390648347,1760111453747,-522.62,0.00027397,60]
[390648349,1760111453756,-522.62,0.00027397,60]
[390648351,1760111453767,-522.62,0.00027397,60]
[390648352,1760111453776,-522.65258079,0.00027397,60]
[390648354,1760111453787,-266.34,0.00027397,49]
[390648356,1760111453796,-520.0,0.00027397,3]
[390648358,1760111453806,-500.0,0.00027397,60]
[390648360,1760111453816,-500.0,0.00027397,60]
[390648361,1760111453825,-500.0,0.00027397,60]
[390648363,1760111453835,-500.0,0.00027397,60]
[390648365,1760111453845,-330.30398943,0.00027397,60]
[390648367,1760111453855,-586.60738582,0.00027397,60]
[390648369,1760111453864,-500.0,0.00027397,60]
[390648370,1760111453874,-500.0,0.00027397,60]
[390648372,1760111453884,-500.0,0.00027397,60]
[390648374,1760111453893,-500.0,0.00027397,60]
[390648376,1760111453903,-500.0,0.00027397,60]
[390648378,1760111453912,-500.0,0.00027397,60]
[390648379,1760111453922,-500.0,0.00027397,60]
[390648381,1760111453932,-500.0,0.00027397,60]
[390648383,1760111453941,-500.0,0.00027397,60]
[390648385,1760111453950,-500.0,0.00027397,60]
[390648386,1760111453960,-500.0,0.00027397,60]
[390648388,1760111453970,-500.0,0.00027397,60]
[390648390,1760111453980,-494.59191119,0.00027397,60]
[390648392,1760111453991,-500.0,0.00027397,30]
[390648394,1760111454002,-500.0,0.00027397,30]
[390648396,1760111454012,-500.0,0.00027397,30]
[390648397,1760111454022,-609.21797492,0.00027397,30]
[390648399,1760111454031,-764.94,0.00027397,2]
[390648401,1760111454041,-764.94,0.00027397,2]
[390648403,1760111454050,-764.94,0.00027397,2]
[390648405,1760111454060,-764.94,0.00027397,2]
[390648406,1760111454070,-764.94,0.00027397,2]
[390648408,1760111454081,-764.94,0.00027397,2]
[390648410,1760111454090,-764.94,0.00027397,2]
[390648412,1760111454100,-764.94,0.00027397,2]
[390648413,1760111454109,-764.94,0.00027397,2]
[390648415,1760111454120,-764.94,0.00027397,2]
[390648417,1760111454130,-764.94,0.00027397,2]
[390648419,1760111454140,-764.94,0.00027397,2]
[390648421,1760111454150,-764.94,0.00027397,2]
[390648422,1760111454160,-764.94,0.00027397,2]
[390648424,1760111454169,-764.94,0.00027397,2]
[390648426,1760111454179,-764.94,0.00027397,2]
[390648428,1760111454192,-764.94,0.00027397,2]
[390648430,1760111454202,-764.94,0.00027397,2]
[390648431,1760111454212,-764.94,0.00027397,2]